bitfinex/quotes_SOLUSD_20240825
["timestamp","ask_amount","ask_price","bid_price","bid_amount"]
[1724603730189,1.56379791,159.89,159.79,9.51132973]
[1724603730368,6.2543,159.89,159.8,9.51132973]
[1724603730568,6.2543,159.89,159.81,2.95936922]
[1724603730780,6.2543,159.89,159.82,2.95936922]
[1724603731087,6.2543,159.89,159.83,1.56584812]
[1724603731266,6.2543,159.89,159.84,1.56584812]
[1724603731466,6.2543,159.89,159.85,1.56584812]
[1724603731667,6.2543,159.89,159.83,1.56584812]
[1724603731884,6.2543,159.89,159.8,7.94548161]
[1724603731885,6.2543,159.89,159.84,1.56584812]
[1724603732193,6.2543,159.89,159.85,1.56584812]
[1724603732397,6.2543,159.89,159.83,1.56584876]
[1724603732583,6.2543,159.89,159.84,1.56584876]
[1724603732787,6.2543,159.89,159.79,7.94816705]
[1724603733090,30.3060837,159.9,159.8,67.9593709]
[1724603733288,30.3060837,159.9,159.81,9.51401685]
[1724603733463,30.3060837,159.9,159.82,1.5658498]
[1724603733464,1.56398407,159.89,159.82,1.5658498]
[1724603733669,30.3060837,159.9,159.83,1.5658498]
[1724603733886,30.3060837,159.9,159.84,1.5658498]
[1724603734083,30.3060837,159.9,159.82,1.5658498]
[1724603734292,30.3060837,159.9,159.83,1.5658498]
[1724603734570,30.3060837,159.9,159.84,1.5658498]
[1724603734765,30.3060837,159.9,159.82,1.5658498]
[1724603734969,30.3060837,159.9,159.8,65.0]
[1724603735165,30.3060837,159.9,159.83,1.56584037]
[1724603735390,7.60668782,159.91,159.83,1.56584037]
[1724603735391,24.0521837,159.88,159.83,1.56584037]
[1724603735692,1.56415501,159.87,159.81,1.56584037]
[1724603735995,1.56415501,159.87,159.75,139.84292651]
[1724603735996,1.56415501,159.87,159.82,1.56584037]
[1724603736170,1.56415501,159.87,159.78,2.9599268]
[1724603736373,1.56415501,159.87,159.79,1.56584037]
[1724603736594,1.56415501,159.87,159.8,1.56584037]
[1724603736779,1.56415501,159.87,159.75,139.84292651]
[1724603736780,1.56415501,159.87,159.81,1.56584037]
[1724603736979,1.56415501,159.87,159.82,1.56584037]
[1724603737184,1.56415501,159.87,159.78,2.9599268]
[1724603737390,1.56415501,159.87,159.79,1.56584037]
[1724603737582,1.56415501,159.87,159.8,1.56584037]
[1724603737788,1.56415501,159.87,159.81,1.56584037]
[1724603737995,1.56415501,159.87,159.82,1.56584037]
[1724603738207,1.56415501,159.87,159.8,1.56595469]
[1724603738576,1.56415501,159.87,159.81,1.56595469]
[1724603738897,1.56415501,159.87,159.82,1.56595469]
[1724603739087,1.56415501,159.87,159.8,1.56595469]
[1724603739276,1.56415501,159.87,159.79,1.39565059]
[1724603739277,1.56415501,159.87,159.81,1.56595469]
[1724603739478,1.56415501,159.87,159.82,1.56595469]
[1724603739690,1.56415501,159.87,159.8,1.56595469]
[1724603739885,1.56415501,159.87,159.81,1.56595469]
[1724603740096,1.56415501,159.87,159.82,1.56595469]
[1724603740279,1.56415501,159.87,159.8,1.56595469]
[1724603740602,1.56415501,159.87,159.81,1.56595469]
[1724603740902,1.56415501,159.87,159.79,1.39565059]
[1724603740903,1.56415501,159.87,159.8,1.56595469]
[1724603741202,1.56415501,159.87,159.81,1.56595469]
[1724603741404,1.56415501,159.87,159.8,1.56595469]
[1724603741702,1.56415501,159.87,159.81,1.56595469]
[1724603741904,1.56415501,159.87,159.8,1.56595469]
[1724603742206,1.56415501,159.87,159.81,1.56595469]
[1724603742406,1.56415501,159.87,159.8,1.56595469]
[1724603742704,1.56415501,159.87,159.81,1.56595469]
[1724603742881,1.56415501,159.87,159.8,1.56595469]
[1724603743202,1.56415501,159.87,159.81,1.56595469]
[1724603743408,1.56415501,159.87,159.8,1.56595469]
[1724603744807,1.56415501,159.87,159.8,1.56596072]
[1724603745205,1.56415501,159.87,159.78,20.0]
[1724603745413,1.56415501,159.87,159.79,2.95967311]
[1724603745889,30.3071837,159.88,159.79,2.95967311]
[1724603746093,9.63350722,159.86,159.79,2.95967311]
[1724603746412,9.63350722,159.86,159.79,1.56596063]
[1724603747787,9.63350722,159.86,159.79,1.56606498]
[1724603751015,9.63350722,159.86,159.78,20.0]
[1724603751218,9.63350722,159.86,159.79,1.56611048]
[1724603754320,6.663,159.85,159.79,1.56611048]
[1724603754495,6.663,159.85,159.79,1.56608517]
[1724603755323,8.22728496,159.85,159.79,1.56608517]
[1724603757118,6.663,159.85,159.79,1.56608517]
[1724603758021,6.663,159.85,159.79,1.5661583]
[1724603758493,6.663,159.85,159.79,5.48163369]
[1724603759319,6.663,159.85,159.79,6.87741139]
[1724603760227,6.663,159.85,159.79,5.48163369]
[1724603760394,6.663,159.85,159.79,1.5661583]
[1724603760906,9.63350722,159.82,159.79,1.5661583]
[1724603761124,17.8017552,159.84,159.73,5.70213328]
[1724603761125,22.9005,159.79,159.74,5.48478988]
[1724603761299,9.63350722,159.78,159.75,1.56641769]
[1724603761718,9.63350722,159.78,159.74,3.91884805]
[1724603762432,1.56487426,159.77,159.74,3.91884805]
[1724603764103,22.9005,159.79,159.74,3.91884805]
[1724603764314,9.63350722,159.78,159.74,3.91884805]
[1724603766704,1.56504209,159.77,159.74,3.91884805]
[1724603766900,1.56507742,159.76,159.74,3.91884805]
[1724603768027,1.56504583,159.77,159.74,3.91884805]
[1724603769015,1.56504583,159.77,159.65,19.37927356]
[1724603769211,1.56504758,159.76,159.67,9.63350722]
[1724603769416,11.1985548,159.76,159.68,65.0]
[1724603771126,11.1985548,159.76,159.65,23.6202679]
[1724603771326,11.1985548,159.76,159.66,45.0]
[1724603771832,9.63350722,159.74,159.66,45.0]
[1724603772029,1.56536889,159.73,159.66,45.0]
[1724603772621,9.63350722,159.74,159.67,20.0]
[1724603773911,9.63350722,159.76,159.67,20.0]
[1724603774536,12.77514976,159.77,159.67,20.0]
[1724603774831,9.63350722,159.76,159.67,20.0]
[1724603775935,6.51614976,159.77,159.67,29.63350722]
[1724603777636,9.63350722,159.74,159.67,20.0]
[1724603777806,1.5653885,159.73,159.67,20.0]
[1724603778629,9.63350722,159.74,159.67,20.0]
[1724603779326,9.63350722,159.74,159.66,20.0]
[1724603780621,9.63350722,159.72,159.63,5.70213328]
[1724603780829,1.56566834,159.71,159.61,16.0095]
[1724603781036,1.56566834,159.71,159.62,45.0]
[1724603781235,1.56566834,159.71,159.61,25.64300722]
[1724603781236,11.19917636,159.7,159.6,13.50297956]
[1724603781443,11.19917636,159.7,159.59,16.28840722]
[1724603781615,6.2609,159.72,159.61,9.63350722]
[1724603781933,9.63350722,159.72,159.63,9.63350722]
[1724603783220,9.63350722,159.72,159.61,9.63350722]
[1724603783429,9.63350722,159.7,159.62,20.0]
[1724603786446,29.37503207,159.73,159.61,20.0]
[1724603786624,9.63350722,159.7,159.61,20.0]
[1724603787131,27.8092,159.73,159.61,20.0]
[1724603787449,9.63350722,159.71,159.61,20.0]
[1724603788128,21.5486,159.73,159.61,20.0]
[1724603788325,9.63350722,159.72,159.62,54.63350722]
[1724603788555,9.63350722,159.72,159.63,20.0]
[1724603792047,16.15647988,159.72,159.63,20.0]
[1724603792359,6.52297266,159.72,159.63,20.0]
[1724603792645,9.63350722,159.72,159.63,20.0]
[1724603794747,29.37501437,159.73,159.59,6.9869679]
[1724603794748,9.63350722,159.7,159.6,9.63350722]
[1724603794935,9.63350722,159.68,159.61,20.0]
[1724603795139,17.71303426,159.67,159.58,15.3356405]
[1724603795331,17.71303426,159.67,159.58,9.63350722]
[1724603795929,17.71303426,159.67,159.55,9.20186527]
[1724603795930,6.2638,159.65,159.55,6.3875]
[1724603796141,1.56623167,159.64,159.55,16.02100722]
[1724603796340,9.63350722,159.66,159.55,22.6072467]
[1724603796652,1.56622929,159.65,159.56,20.0]
[1724603797323,9.63350722,159.66,159.57,54.63350722]
[1724603797527,9.63350722,159.66,159.58,20.0]
[1724603797857,1.56623056,159.65,159.58,20.0]
[1724603798742,1.56623056,159.65,159.55,9.63350722]
[1724603798925,9.63350722,159.64,159.55,9.63350722]
[1724603799127,1.56646975,159.63,159.55,9.63350722]
[1724603799342,9.63350722,159.64,159.54,16.22147913]
[1724603799553,29.0088,159.67,159.56,9.63350722]
[1724603799851,9.63350722,159.65,159.56,9.63350722]
[1724603804825,9.63350722,159.65,159.54,6.5894789]
[1724603804826,16.2966,159.64,159.54,6.5894789]
[1724603805140,9.63350722,159.61,159.52,10.45154582]
[1724603805453,1.56673761,159.6,159.52,10.45154582]
[1724603805855,9.63350722,159.61,159.52,10.45154582]
[1724603807138,1.56686381,159.6,159.52,10.45154582]
[1724603807368,16.2966,159.59,159.52,10.45154582]
[1724603807577,1.56685322,159.58,159.52,10.45154582]
[1724603807876,1.56685322,159.58,159.52,0.8180386]
[1724603808374,1.56685322,159.58,159.52,20.8180386]
[1724603808748,16.2966,159.59,159.52,30.45154582]
[1724603819392,16.2966,159.59,159.52,30.45154582]
[1724603819898,16.2966,159.59,159.56,9.63350722]
[1724603821193,16.2966,159.59,159.54,9.63350722]
[1724603821405,16.2966,159.59,159.55,45.0]
[1724603825005,16.2966,159.59,159.54,9.63350722]
[1724603826177,16.2966,159.59,159.53,1.56848645]
[1724603826379,16.2966,159.59,159.53,1.568568]
[1724603826380,1.5667031,159.58,159.53,1.568568]
[1724603826614,16.2966,159.59,159.52,0.8180386]
[1724603826615,1.566949,159.57,159.52,0.8180386]
[1724603827485,6.4342,159.56,159.52,0.8180386]
[1724603827681,15.0593,159.54,159.52,0.8180386]
[1724603830285,16.62652672,159.54,159.52,0.8180386]
[1724603831187,16.62652672,159.54,159.44,9.63350722]
[1724603831516,16.62652672,159.54,159.41,18.15292058]
[1724603831726,16.62652672,159.54,159.44,9.63350722]
[1724603832190,6.5898,159.52,159.44,9.63350722]
[1724603832391,6.5898,159.52,159.39,27.130796]
[1724603832392,1.56769126,159.51,159.42,9.63350722]
[1724603832587,6.5898,159.52,159.44,9.63350722]
[1724603834190,6.5898,159.52,159.46,9.63350722]
[1724603834492,6.5898,159.52,159.48,9.63350722]
[1724603835396,15.0593,159.54,159.48,9.63350722]
[1724603838307,15.0593,159.54,159.45,45.0]
[1724603838308,1.56744015,159.53,159.46,9.63350722]
[1724603838696,15.0593,159.54,159.46,9.63350722]
[1724603839791,15.0593,159.54,159.48,9.63350722]
[1724603840990,15.0593,159.54,159.43,16.1608]
[1724603841187,15.0593,159.54,159.46,9.63350722]
[1724603842006,6.5898,159.52,159.44,20.0]
[1724603842206,6.5898,159.52,159.4,7.81315888]
[1724603842207,15.3406,159.5,159.43,9.63350722]
[1724603842431,1.56781988,159.49,159.43,9.63350722]
[1724603842625,15.3406,159.5,159.43,9.63350722]
[1724603843220,15.3406,159.5,159.45,9.63350722]
[1724603845550,1.56755151,159.49,159.43,9.63350722]
[1724603845733,15.3406,159.5,159.43,9.63350722]
[1724603849130,1.56775387,159.49,159.43,9.63350722]
[1724603849347,15.3406,159.5,159.43,9.63350722]
[1724603849725,15.3406,159.5,159.45,9.63350722]
[1724603849924,6.5898,159.52,159.47,9.63350722]
[1724603850836,22.46415272,159.54,159.51,9.63350722]
[1724603851164,6.4103,159.57,159.53,9.63350722]
[1724603851321,15.9565,159.58,159.56,9.63350722]
[1724603851521,12.92019927,159.62,159.56,9.63350722]
[1724603851522,22.3668,159.62,159.56,9.63350722]
[1724603852051,22.3668,159.62,159.54,24.14929853]
[1724603852638,1.56665432,159.61,159.52,69.14929853]
[1724603852846,1.56671547,159.6,159.52,69.14929853]
[1724603853333,1.56671547,159.6,159.53,20.0]
[1724603853525,22.3668,159.62,159.52,69.14929853]
[1724603853952,23.93360092,159.62,159.5,24.14929853]
[1724603854149,23.93360092,159.62,159.51,20.0]
[1724603854429,28.6316,159.62,159.51,20.0]
[1724603854947,1.56689239,159.61,159.51,20.0]
[1724603855152,7.83209239,159.61,159.51,20.0]
[1724603855346,7.83209239,159.61,159.48,24.14929853]
[1724603855347,15.9565,159.6,159.48,24.14929853]
[1724603855554,1.56707738,159.59,159.49,65.0]
[1724603856446,7.83317738,159.59,159.49,65.0]
[1724603858069,7.83317738,159.59,159.49,20.0]
[1724603858268,15.9565,159.54,159.45,24.14929853]
[1724603858451,17.52406083,159.54,159.4,6.5855]
[1724603858775,17.52406083,159.54,159.43,24.14929853]
[1724603859484,6.2684,159.53,159.43,24.14929853]
[1724603859670,1.56759329,159.52,159.44,20.0]
[1724603859877,22.2245,159.54,159.44,65.0]
[1724603860753,22.2245,159.54,159.44,20.0]
[1724603860952,23.79214054,159.54,159.44,20.0]
[1724603861178,6.2685,159.53,159.44,20.0]
[1724603861479,15.9565,159.54,159.44,20.0]
[1724603862651,1.5675602,159.53,159.44,20.0]
[1724603862852,15.9565,159.54,159.44,20.0]
[1724603863352,1.56755995,159.53,159.44,20.0]
[1724603863874,22.2245,159.54,159.44,20.0]
[1724603865584,23.79206649,159.54,159.44,20.0]
[1724603865756,6.2686,159.53,159.44,20.0]
[1724603865961,6.2686,159.53,159.43,24.14929853]
[1724603866161,6.2686,159.53,159.44,6.61044546]
[1724603866366,22.2246,159.54,159.43,24.14929853]
[1724603866582,22.2246,159.54,159.44,6.61059678]
[1724603866878,23.79219746,159.54,159.44,6.61059678]
[1724603867175,6.2684,159.53,159.43,24.14929853]
[1724603867477,51.2684,159.53,159.43,24.14929853]
[1724603868990,7.83665667,159.52,159.44,6.61048561]
[1724603869166,16.4355,159.51,159.41,24.14929853]
[1724603869369,16.4355,159.51,159.42,71.61068233]
[1724603869683,1.56775665,159.5,159.43,6.61068233]
[1724603869872,1.56775665,159.5,159.43,6.61115844]
[1724603870267,16.4355,159.51,159.43,6.61115844]
[1724603870866,1.56775704,159.5,159.43,6.61115844]
[1724603871483,16.4355,159.51,159.43,6.61115844]
[1724603871786,16.4355,159.51,159.43,6.60841394]
[1724603874075,16.4355,159.51,159.44,9.67473138]
[1724603876695,1.56768892,159.5,159.44,9.67473138]
[1724603877776,16.4355,159.51,159.44,9.67473138]
[1724603878970,16.4355,159.51,159.43,6.60841394]
[1724603879164,16.4355,159.51,159.43,16.28314532]
[1724603879378,16.4355,159.51,159.47,9.67473138]
[1724603879577,16.4355,159.51,159.45,9.67473138]
[1724603879777,18.00314691,159.51,159.45,9.67473138]
[1724603880393,16.4355,159.51,159.45,9.67473138]
[1724603882874,16.4355,159.51,159.47,9.67473138]
[1724603886485,16.4355,159.51,159.48,1.56918644]
[1724603886789,16.4355,159.51,159.49,1.56918624]
[1724603887095,16.4355,159.51,159.5,1.56918624]
[1724603892168,16.4355,159.51,159.5,1.56918584]
[1724603895291,16.4355,159.51,159.48,1.56918584]
[1724603895488,16.4355,159.51,159.49,1.56918584]
[1724603895695,16.4355,159.51,159.47,9.67473138]
[1724603895999,16.4355,159.51,159.48,1.56931416]
[1724603896180,16.4355,159.51,159.44,9.67473138]
[1724603896378,16.4355,159.51,159.45,1.56959419]
[1724603896587,16.4355,159.51,159.46,1.56959419]
[1724603896797,16.4355,159.51,159.47,1.56950986]
[1724603897097,16.4355,159.51,159.44,9.67473138]
[1724603897301,16.4355,159.51,159.45,1.56951016]
[1724603897502,16.4355,159.51,159.46,1.56951016]
[1724603897791,16.4355,159.51,159.47,1.56951016]
[1724603898007,16.4355,159.51,159.48,1.56951016]
[1724603898171,16.4355,159.51,159.44,9.67473138]
[1724603898371,16.4355,159.51,159.45,1.56951569]
[1724603898587,16.4355,159.51,159.44,9.67473138]
[1724603898588,16.4355,159.51,159.46,1.56951569]
[1724603898789,16.4355,159.51,159.47,1.56952702]
[1724603898979,16.4355,159.51,159.48,1.56952702]
[1724603899185,16.4355,159.51,159.44,9.67473138]
[1724603899386,16.4355,159.51,159.45,1.56952027]
[1724603899576,16.4355,159.51,159.46,1.56952027]
[1724603899783,16.4355,159.51,159.47,1.56952027]
[1724603899981,16.4355,159.51,159.48,1.56952027]
[1724603900182,16.4355,159.51,159.44,9.67473138]
[1724603900397,16.4355,159.51,159.45,1.56950785]
[1724603900583,16.4355,159.51,159.46,1.56950785]
[1724603900807,16.4355,159.51,159.47,1.56950785]
[1724603900987,16.4355,159.51,159.48,1.56950785]
[1724603901180,16.4355,159.51,159.49,1.56951072]
[1724603901381,16.4355,159.51,159.44,9.67473138]
[1724603901675,16.4355,159.51,159.45,1.56951912]
[1724603901676,1.56760116,159.5,159.45,1.56951912]
[1724603901999,16.4355,159.51,159.46,1.56959875]
[1724603902204,16.4355,159.51,159.47,1.56959875]
[1724603902380,16.4355,159.51,159.48,1.56959875]
[1724603902582,16.4355,159.51,159.49,1.56959875]
[1724603902793,16.4355,159.51,159.44,9.67473138]
[1724603903112,16.4355,159.51,159.45,1.56952897]
[1724603903283,16.4355,159.51,159.46,1.56952897]
[1724603903482,16.4355,159.51,159.47,1.56952897]
[1724603903677,16.4355,159.51,159.48,1.56952897]
[1724603903903,6.4346,159.5,159.38,15.0917]
[1724603904108,6.4346,159.5,159.42,9.67473138]
[1724603904400,6.4346,159.5,159.43,21.56964425]
[1724603904604,6.4346,159.5,159.44,1.56964425]
[1724603904806,6.4346,159.5,159.45,1.56964425]
[1724603904985,6.4346,159.5,159.46,1.56964425]
[1724603905194,6.4346,159.5,159.47,1.56964425]
[1724603905502,8.00247609,159.5,159.48,1.56964425]
[1724603905703,8.00247609,159.5,159.42,9.67473138]
[1724603905892,14.27227609,159.5,159.43,1.56967924]
[1724603906079,14.27227609,159.5,159.44,1.56967924]
[1724603906420,17.67720747,159.5,159.45,1.56967924]
[1724603906702,9.67473138,159.48,159.36,0.8180386]
[1724603906906,28.05418626,159.49,159.4,9.67473138]
[1724603907474,1.56799505,159.48,159.4,9.67473138]
[1724603908002,7.83849505,159.48,159.39,9.67473138]
[1724603908202,72.9888,159.47,159.39,9.67473138]
[1724603908420,1.56836002,159.46,159.37,9.67473138]
[1724603908711,1.56835994,159.45,159.37,9.67473138]
[1724603909208,66.718,159.47,159.37,9.67473138]
[1724603909412,66.718,159.47,159.38,9.67473138]
[1724603909609,7.83945882,159.46,159.38,9.67473138]
[1724603909911,1.56835894,159.45,159.38,9.67473138]
[1724603910473,1.56835894,159.45,159.37,9.67473138]
[1724603910905,15.94583138,159.46,159.37,9.67473138]
[1724603913007,1.56840553,159.45,159.37,9.67473138]
[1724603913200,15.94583138,159.46,159.37,9.67473138]
[1724603913512,9.67473138,159.46,159.37,9.67473138]
[1724603913692,21.718,159.47,159.39,9.67473138]
[1724603914286,21.718,159.47,159.41,9.67473138]
[1724603915211,1.56802913,159.46,159.41,9.67473138]
[1724603915420,21.718,159.47,159.41,9.67473138]
[1724603917005,1.56801866,159.46,159.41,9.67473138]
[1724603917392,21.718,159.47,159.41,9.67473138]
[1724603918686,21.718,159.47,159.42,1.56978108]
[1724603918886,21.718,159.47,159.43,1.56978108]
[1724603919091,21.718,159.47,159.44,1.56978108]
[1724603919322,21.718,159.47,159.45,1.56978108]
[1724603919498,21.718,159.47,159.46,1.56978108]
[1724603919699,21.718,159.47,159.42,1.56978108]
[1724603919917,21.718,159.47,159.43,1.56978108]
[1724603920098,21.718,159.47,159.44,1.56978108]
[1724603920295,21.718,159.47,159.45,1.56978108]
[1724603920497,1.56797169,159.46,159.42,1.56977682]
[1724603920718,27.9888,159.47,159.43,1.56995994]
[1724603920890,21.718,159.47,159.39,1.56995994]
[1724603921095,27.9888,159.47,159.4,1.56995994]
[1724603921295,27.9888,159.47,159.41,1.56995994]
[1724603921597,27.9888,159.47,159.42,1.56996181]
[1724603921800,27.9888,159.47,159.38,9.67473138]
[1724603921994,27.9888,159.47,159.39,1.56997807]
[1724603922216,27.9888,159.47,159.4,1.56997807]
[1724603922415,27.9888,159.47,159.41,1.56997807]
[1724603922614,27.9888,159.47,159.42,1.56997807]
[1724603922925,27.9888,159.47,159.38,9.67473138]
[1724603923227,27.9888,159.47,159.39,1.56997807]
[1724603923396,27.9888,159.47,159.4,1.56997807]
[1724603923595,27.9888,159.47,159.41,1.56997807]
[1724603923896,27.9888,159.47,159.42,1.56997807]
[1724603924091,27.9888,159.47,159.38,9.67473138]
[1724603924320,27.9888,159.47,159.39,1.56996065]
[1724603924518,27.9888,159.47,159.4,1.56996065]
[1724603924723,27.9888,159.47,159.41,1.56996034]
[1724603925024,27.9888,159.47,159.42,1.56996034]
[1724603925209,27.9888,159.47,159.39,1.16896034]
[1724603925420,27.9888,159.47,159.38,9.67473138]
[1724603925796,17.51424524,159.46,159.36,10.49276998]
[1724603926125,1.56836252,159.45,159.36,10.49276998]
[1724603926596,1.56836252,159.45,159.36,3.73706203]
[1724603926992,15.0983,159.43,159.29,2.69710766]
[1724603927208,1.56865085,159.42,159.33,9.67473138]
[1724603927834,1.56883706,159.41,159.33,9.67473138]
[1724603928128,1.56883706,159.41,159.28,67.35255684]
[1724603928129,15.0983,159.4,159.28,67.35255684]
[1724603928298,15.0983,159.4,159.32,9.67473138]
[1724603929304,15.0983,159.4,159.33,20.0]
[1724603930317,15.0983,159.4,159.34,9.67473138]
[1724603934652,15.0983,159.4,159.33,20.0]
[1724603934960,1.56882551,159.39,159.32,9.67473138]
[1724603935335,15.0983,159.4,159.32,9.67473138]
[1724603936538,9.67473138,159.36,159.28,12.68883132]
[1724603936761,1.56917073,159.35,159.27,9.67473138]
[1724603937261,1.56917073,159.35,159.28,1.57083159]
[1724603937444,1.56917073,159.35,159.27,9.67473138]
[1724603937637,1.56917073,159.35,159.29,1.57083695]
[1724603937837,1.56917073,159.35,159.26,9.67473138]
[1724603938045,1.56917073,159.35,159.27,1.57087206]
[1724603938241,1.56917073,159.35,159.26,9.67473138]
[1724603938242,15.292,159.33,159.28,1.57087206]
[1724603938443,15.292,159.33,159.22,6.98669804]
[1724603938444,11.24448878,159.32,159.23,1.57087206]
[1724603938644,9.67473138,159.32,159.24,1.57087206]
[1724603938840,9.67473138,159.32,159.23,1.57087206]
[1724603939165,9.67473138,159.32,159.24,1.57087206]
[1724603939339,9.67473138,159.32,159.23,1.57087206]
[1724603939535,31.24323138,159.33,159.23,1.57087206]
[1724603939773,45.0,159.32,159.23,1.57087206]
[1724603940144,24.96673138,159.33,159.23,1.57087206]
[1724603940538,31.24293138,159.33,159.23,21.57087206]
[1724603940839,15.292,159.33,159.24,1.57087206]
[1724603941160,15.292,159.33,159.24,46.57087206]
[1724603941363,15.292,159.33,159.25,1.57087206]
[1724603941738,15.292,159.33,159.24,1.57087206]
[1724603941940,15.292,159.33,159.27,9.67473138]
[1724603942968,15.292,159.33,159.22,1.57087206]
[1724603943180,15.292,159.33,159.23,24.6759701]
[1724603943377,15.292,159.33,159.28,9.67473138]
[1724603943854,15.292,159.33,159.3,9.67473138]
[1724603944167,15.292,159.33,159.28,9.67473138]
[1724603944470,15.292,159.33,159.3,9.67473138]
[1724603945637,15.3615,159.37,159.32,9.67473138]
[1724603946367,1.56894608,159.36,159.32,9.67473138]
[1724603946867,1.56894608,159.36,159.3,9.67473138]
[1724603948265,15.3615,159.37,159.3,9.67473138]
[1724603951074,15.3615,159.37,159.32,9.67473138]
[1724603951639,15.3615,159.37,159.34,9.67473138]
[1724603951847,21.5577,159.34,159.29,1.41953097]
[1724603952144,21.5577,159.28,159.2,0.8180386]
[1724603952373,21.5577,159.28,159.21,9.67473138]
[1724603953445,21.5577,159.28,159.25,9.67473138]
[1724603953761,21.5577,159.34,159.25,9.67473138]
[1724603953954,21.5577,159.34,159.27,9.67473138]
[1724603954966,1.56926901,159.33,159.21,1.4112762]
[1724603955273,11.24429684,159.32,159.22,9.67473138]
[1724603955473,11.24429684,159.32,159.23,65.0]
[1724603956256,11.24429684,159.32,159.2,0.8180386]
[1724603956462,15.95243138,159.3,159.2,10.49276998]
[1724603956647,1.56987695,159.29,159.2,10.49276998]
[1724603956845,1.56977086,159.31,159.2,10.49276998]
[1724603957267,1.56977086,159.31,159.22,9.67473138]
[1724603957972,25.82988533,159.31,159.2,0.8180386]
[1724603958157,45.0,159.3,159.2,0.8180386]
[1724603958480,1.5700007,159.29,159.2,0.8180386]
[1724603959276,1.57000418,159.3,159.2,0.8180386]
[1724603959774,6.2773,159.31,159.2,70.07815307]
[1724603959963,1.56979764,159.3,159.2,70.07815307]
[1724603960665,1.56981044,159.29,159.2,70.07815307]
[1724603961681,1.56981035,159.3,159.2,70.07815307]
[1724603964686,6.2766,159.33,159.24,24.26011447]
[1724603965273,21.5577,159.34,159.26,24.26011447]
[1724603965680,27.832,159.38,159.28,24.26011447]
[1724603965888,34.32327138,159.38,159.28,24.26011447]
[1724603966174,7.84389035,159.37,159.28,24.26011447]
[1724603966479,7.84389035,159.37,159.27,45.0]
[1724603967170,6.2751,159.36,159.27,45.0]
[1724603967375,1.56909035,159.37,159.22,30.36491447]
[1724603967376,6.276,159.34,159.22,30.36491447]
[1724603967569,1.56948981,159.33,159.23,65.0]
[1724603967767,1.56949563,159.32,159.23,65.0]
[1724603968679,1.5694472,159.33,159.23,65.0]
[1724603968882,7.84610132,159.32,159.23,20.0]
[1724603969059,7.84610132,159.32,159.22,24.26011447]
[1724603969383,16.4509,159.3,159.2,25.07815307]
[1724603969590,1.56978297,159.29,159.2,25.07815307]
[1724603970764,1.56978297,159.29,159.21,65.0]
[1724603971073,16.4509,159.3,159.22,24.26011447]
[1724603971262,16.4509,159.3,159.23,45.0]
[1724603972386,16.4509,159.34,159.24,24.26011447]
[1724603972682,16.4509,159.34,159.25,45.0]
[1724603972883,18.0203472,159.34,159.25,45.0]
[1724603973066,24.2962472,159.34,159.25,45.0]
[1724603975565,6.2763,159.33,159.22,24.26011447]
[1724603975763,1.56959519,159.32,159.23,65.0]
[1724603977873,1.56959519,159.32,159.23,45.0]
[1724603980083,1.56959519,159.32,159.23,54.69921026]
[1724603980773,12.4824,159.31,159.2,0.8180386]
[1724603980974,1.56976024,159.3,159.22,9.69921026]
[1724603981179,12.4824,159.31,159.22,9.69921026]
[1724603981377,1.56976023,159.3,159.22,9.69921026]
[1724603981775,15.5541,159.29,159.2,11.92877273]
[1724603981980,1.56985053,159.28,159.21,65.0]
[1724603982168,1.56985053,159.28,159.22,1.41152387]
[1724603985196,1.56985053,159.28,159.21,20.0]
[1724603985364,1.56985053,159.28,159.22,1.41216]
[1724603986084,1.56985053,159.28,159.21,20.0]
[1724603986297,1.56985053,159.28,159.22,1.41216]
[1724603987605,1.56985053,159.28,159.21,20.0]
[1724603987902,1.56985053,159.28,159.22,1.41212762]
[1724603988302,1.56985053,159.28,159.21,20.0]
[1724603988595,1.56985053,159.28,159.22,1.41215705]
[1724603990200,1.56985053,159.28,159.2,10.51724886]
[1724603991385,1.56985053,159.28,159.2,11.92306309]
[1724603991598,1.56985053,159.28,159.2,0.8180386]
[1724603991903,1.56985053,159.28,159.2,10.51724886]
[1724603992475,1.56985053,159.28,159.21,1.40581423]
[1724603993008,15.5541,159.29,159.21,1.40581423]
[1724603993188,1.56978719,159.28,159.21,46.40581423]
[1724603993390,1.56978719,159.28,159.22,1.40581423]
[1724603993695,1.56978719,159.28,159.21,1.40581423]
[1724603994984,1.56978719,159.28,159.2,0.8180386]